fUSD/lending_fUSD_20250226
["ID","MTS","AMOUNT","RATE_DAILY","PERIOD"]
[354565877,1740576646438,-500.0,0.00039724,14]
[354565878,1740576646447,-645.99,0.00039724,14]
[354565879,1740576646456,-576.6,0.00039724,14]
[354565880,1740576646465,-500.0,0.00039724,14]
[354565881,1740576646475,-522.91,0.00039724,14]
[354565882,1740576646484,-592.51,0.00039724,14]
[354565883,1740576646493,-500.0,0.00039724,14]
[354565884,1740576646503,-500.0,0.00039724,14]
[354565885,1740576646512,-548.46,0.00039724,14]
[354565886,1740576646522,-500.0,0.00039724,14]
[354565887,1740576646531,-599.96,0.00039724,14]
[354565888,1740576646540,-509.79,0.00039724,14]
[354565889,1740576646550,-500.0,0.00039724,14]
[354565890,1740576646559,-974.92,0.00039724,14]
[354565891,1740576646569,-592.89,0.00039724,14]
[354565892,1740576646579,-500.0,0.00039724,14]
[354565893,1740576646589,-634.19,0.00039724,14]
[354565894,1740576646598,-500.0,0.00039724,14]
[354565895,1740576646607,-500.0,0.00039724,14]
[354565896,1740576646616,-592.2,0.00039724,14]
[354565897,1740576646626,-500.0,0.00039724,14]
[354565898,1740576646635,-500.0,0.00039724,14]
[354565900,1740576646645,-505.6,0.00039724,14]
[354565901,1740576646654,-584.8,0.00039724,14]
[354565902,1740576646664,-500.0,0.00039724,14]
[354565903,1740576646673,-500.0,0.00039724,14]
[354565904,1740576646682,-852.82,0.00039724,14]
[354565905,1740576646692,-720.37,0.00039724,14]
[354565906,1740576646701,-500.0,0.00039724,14]
[354565908,1740576646710,-630.69,0.00039724,14]
[354565909,1740576646719,-500.0,0.00039724,14]
[354565910,1740576646729,-500.0,0.00039724,14]
[354565911,1740576646742,-500.0,0.00039724,14]
[354565912,1740576646752,-1127.0,0.00039724,14]
[354565913,1740576646761,-500.0,0.00039724,14]
[354565914,1740576646772,-500.0,0.00039724,14]
[354565915,1740576646783,-828.67,0.00039724,14]
[354565916,1740576646792,-654.38,0.00039724,14]
[354565917,1740576646802,-500.0,0.00039724,14]
[354565918,1740576646812,-500.0,0.00039724,14]
[354565919,1740576646823,-500.0,0.00039724,14]
[354565920,1740576646833,-500.0,0.00039724,14]
[354565922,1740576646842,-500.0,0.00039724,14]
[354565923,1740576646852,-1010.0,0.00039724,14]
[354565924,1740576646862,-852.12,0.00039724,14]
[354565925,1740576646871,-324.21462067,0.00039724,14]
[354565926,1740576646881,-650.03,0.00039724,14]
[354565927,1740576646891,-500.0,0.00039724,14]
[354565928,1740576646900,-500.0,0.00039724,14]
[354565929,1740576646910,-500.0,0.00039724,14]
[354565930,1740576646919,-500.0,0.00039724,14]
[354565931,1740576646928,-746.28,0.00039724,14]
[354565932,1740576646937,-500.0,0.00039724,14]
[354565933,1740576646948,-1149.7,0.00039724,14]
[354565934,1740576646957,-1257.7,0.00039724,14]
[354565935,1740576646967,-500.0,0.00039724,14]
[354565936,1740576646976,-500.0,0.00039724,14]
[354565937,1740576646985,-500.0,0.00039724,14]
[354565938,1740576646995,-1342.51,0.00039724,14]
[354565939,1740576647005,-500.0,0.00039724,14]
[354565940,1740576647014,-500.0,0.00039724,14]
[354565941,1740576647023,-503.98032584,0.00039724,14]
[354565942,1740576647033,-520.28569782,0.00039724,14]
[354565943,1740576647042,-500.0,0.00039724,14]
[354565944,1740576647051,-1091.3,0.00039724,14]
[354565945,1740576647061,-1131.82,0.00039724,14]
[354565946,1740576647071,-500.0,0.00039724,14]
[354565947,1740576647080,-737.89,0.00039724,14]
[354565948,1740576647090,-500.0,0.00039724,14]
[354565949,1740576647100,-1036.76,0.00039724,14]
[354565950,1740576647109,-503.63180215,0.00039724,14]
[354565951,1740576647118,-500.0,0.00039724,14]
[354565952,1740576647128,-785.71,0.00039724,14]
[354565953,1740576647137,-221.28890315,0.00039724,14]
[354565954,1740576647147,-500.0,0.00039724,14]
[354565955,1740576647156,-893.7,0.00039724,14]
[354565956,1740576647165,-500.0,0.00039724,14]
[354565957,1740576647175,-500.0,0.00039724,14]
[354565958,1740576647184,-500.0,0.00039724,14]
[354565959,1740576647193,-1429.29,0.00039724,14]
[354565960,1740576647204,-578.71,0.00039724,14]
[354565961,1740576647213,-1407.87,0.00039724,14]
[354565962,1740576647222,-500.0,0.00039724,14]
[354565963,1740576647232,-1248.91,0.00039724,14]
[354565964,1740576647241,-642.94574954,0.00039724,14]
[354565965,1740576647251,-573.45,0.00039724,14]
[354565966,1740576647260,-2552.67,0.00039724,14]
[354565967,1740576647269,-702.9,0.00039724,14]
[354565968,1740576647278,-1381.62,0.00039724,14]
[354565969,1740576647287,-499.39519986,0.00039724,14]
[354565970,1740576647297,-500.0,0.00039724,14]
[354565971,1740576647306,-500.0,0.00039724,14]
[354565972,1740576647316,-500.0,0.00039724,14]
[354565973,1740576647327,-560.3,0.00039724,14]
[354565974,1740576647336,-504.01250945,0.00039724,14]
[354565975,1740576647347,-1602.95,0.00039724,14]
[354565976,1740576647357,-774.31,0.00039724,14]
[354565977,1740576647368,-805.65,0.00039724,14]
[354565978,1740576647377,-500.0,0.00039724,14]
[354565979,1740576647388,-500.0,0.00039724,14]
[354565980,1740576647397,-602.42,0.00039724,14]
[354565981,1740576647407,-500.0,0.00039724,14]
[354565982,1740576647416,-2847.1,0.00039724,14]
[354565983,1740576647427,-500.0,0.00039724,14]
[354565984,1740576647436,-500.0,0.00039724,14]
[354565985,1740576647445,-764.26,0.00039724,14]
[354565986,1740576647455,-500.0,0.00039724,14]
[354565987,1740576647464,-500.0,0.00039724,14]
[354565988,1740576647473,-1730.38,0.00039724,14]
[354565989,1740576647483,-500.0,0.00039724,14]
[354565990,1740576647667,-500.0,0.00039724,14]
[354565991,1740576647681,-1260.95,0.00039724,14]
[354565992,1740576647691,-655.49,0.00039724,14]
[354565993,1740576647700,-500.0,0.00039724,14]
[354565994,1740576647709,-500.0,0.00039724,14]
[354565995,1740576647719,-910.55,0.00039724,14]
[354565996,1740576647728,-500.0,0.00039724,14]
[354565997,1740576647737,-500.0,0.00039724,14]
[354565998,1740576647747,-3544.25,0.00039724,14]
[354565999,1740576647756,-1328.01,0.00039724,14]
[354566000,1740576647765,-500.0,0.00039724,14]
[354566001,1740576647775,-500.0,0.00039724,14]
[354566002,1740576647785,-1047.85,0.00039724,14]
[354566003,1740576647794,-500.0,0.00039724,14]
[354566004,1740576647805,-3479.26,0.00039724,14]
[354566005,1740576647814,-2635.01,0.00039724,14]
[354566006,1740576647824,-991.32,0.00039724,14]
[354566007,1740576647833,-852.12,0.00039724,14]
[354566008,1740576647843,-500.0,0.00039724,14]
[354566009,1740576647852,-1872.72,0.00039724,14]
[354566010,1740576647862,-2472.0,0.00039724,14]
[354566011,1740576647871,-500.0,0.00039724,14]
[354566012,1740576647881,-743.17695,0.00039724,14]
[354566013,1740576647890,-500.0,0.00039724,14]
[354566014,1740576647899,-581.61,0.00039724,14]
[354566015,1740576647909,-574.93,0.00039724,14]
[354566016,1740576647920,-4352.36,0.00039724,14]
[354566017,1740576647931,-1955.31,0.00039724,14]
[354566018,1740576647943,-500.0,0.00039724,14]
[354566019,1740576647952,-964.72,0.00039724,14]
[354566020,1740576647962,-500.0,0.00039724,14]
[354566021,1740576647972,-632.7,0.00039724,14]
[354566022,1740576647983,-13873.2,0.00039724,14]
[354566023,1740576647993,-1713.626842,0.00039724,14]
[354566024,1740576648003,-531.93,0.00039724,14]
[354566025,1740576648013,-2026.05,0.00039724,14]
[354566026,1740576648022,-500.0,0.00039724,14]
[354566027,1740576648032,-632.95,0.00039724,14]
[354566028,1740576648042,-500.0,0.00039724,14]
[354566029,1740576648051,-500.0,0.00039724,14]
[354566030,1740576648060,-500.0,0.00039724,14]
[354566031,1740576648070,-500.0,0.00039724,14]
[354566032,1740576648080,-952.05,0.00039724,14]
[354566033,1740576648090,-3615.9,0.00039724,14]
[354566034,1740576648099,-500.96980222,0.00039724,14]
[354566035,1740576648109,-500.0,0.00039724,14]
[354566036,1740576648119,-500.0,0.00039724,14]
[354566037,1740576648129,-500.0,0.00039724,14]
[354566038,1740576648139,-500.0,0.00039724,14]
[354566039,1740576648148,-500.0,0.00039724,14]
[354566040,1740576648158,-7441.97,0.00039724,14]
[354566041,1740576648168,-500.0,0.00039724,14]
[354566042,1740576648180,-500.0,0.00039724,14]
[354566043,1740576648191,-500.0,0.00039724,14]
[354566044,1740576648201,-500.0,0.00039724,14]
[354566045,1740576648211,-500.0,0.00039724,14]
[354566046,1740576648220,-1361.16,0.00039724,14]
[354566047,1740576648229,-500.0,0.00039724,14]
[354566048,1740576648239,-3537.7,0.00039724,14]
[354566049,1740576648248,-500.0,0.00039724,14]
[354566050,1740576648258,-3227.85,0.00039724,14]
[354566051,1740576648268,-500.0,0.00039724,14]
[354566052,1740576648278,-500.0,0.00039724,14]
[354566053,1740576648287,-500.0,0.00039724,14]
[354566054,1740576648297,-3393.4,0.00039724,14]
[354566055,1740576648306,-500.0,0.00039724,14]
[354566056,1740576648315,-500.0,0.00039724,14]
[354566057,1740576648325,-500.0,0.00039724,14]
[354566058,1740576648335,-500.0,0.00039724,14]
[354566059,1740576648348,-500.0,0.00039724,14]
[354566060,1740576648358,-500.0,0.00039724,14]
[354566061,1740576648368,-11387.44,0.00039724,14]
[354566062,1740576648378,-500.0,0.00039724,14]
[354566063,1740576648389,-1250.82,0.00039724,14]
[354566064,1740576648399,-2483.93,0.00039724,14]
[354566065,1740576648408,-500.0,0.00039724,14]
[354566066,1740576648418,-500.0,0.00039724,14]
[354566067,1740576648430,-500.0,0.00039724,14]
[354566068,1740576648440,-916.59,0.00039724,14]
[354566069,1740576648450,-6442.59,0.00039724,14]
[354566070,1740576648460,-500.0,0.00039724,14]
[354566071,1740576648469,-500.0,0.00039724,14]
[354566072,1740576648478,-1746.95,0.00039724,14]
[354566073,1740576648487,-1383.17,0.00039724,14]
[354566074,1740576648497,-2818.36,0.00039724,14]
[354566075,1740576648507,-500.0,0.00039724,14]
[354566076,1740576648516,-500.0,0.00039724,14]
[354566077,1740576648526,-595.5,0.00039724,14]
[354566078,1740576648535,-5322.17,0.00039724,14]
[354566079,1740576648544,-500.0,0.00039724,14]
[354566080,1740576648554,-970.15,0.00039724,14]
[354566081,1740576648563,-1019.67,0.00039724,14]
[354566082,1740576648574,-500.0,0.00039724,14]
[354566083,1740576648583,-2987.07,0.00039724,14]
[354566084,1740576648593,-500.0,0.00039724,14]
[354566085,1740576648602,-500.0,0.00039724,14]
[354566086,1740576648611,-500.0,0.00039724,14]
[354566087,1740576648620,-11356.51,0.00039724,14]
[354566088,1740576648629,-1200.84,0.00039724,14]
[354566089,1740576648639,-579.27,0.00039724,14]
[354566090,1740576648648,-2372.7,0.00039724,14]
[354566091,1740576648657,-500.0,0.00039724,14]
[354566092,1740576648667,-500.0,0.00039724,14]
[354566093,1740576648676,-500.0,0.00039724,14]
[354566094,1740576648685,-500.0,0.00039724,14]
[354566095,1740576648695,-500.0,0.00039724,14]
[354566096,1740576648704,-324.24808321,0.00039724,14]
[354566097,1740576648713,-500.0,0.00039724,14]
[354566098,1740576648722,-500.0,0.00039724,14]
[354566099,1740576648732,-500.0,0.00039724,14]
[354566100,1740576648741,-2065.94,0.00039724,14]
[354566101,1740576648751,-1000.0,0.00039724,14]
[354566102,1740576648761,-500.0,0.00039724,14]
[354566103,1740576648770,-500.0,0.00039724,14]
[354566104,1740576648780,-500.0,0.00039724,14]
[354566105,1740576648790,-239.18296293,0.00039724,14]
[354566106,1740576648800,-500.0,0.00039724,14]
[354566107,1740576648810,-500.0,0.00039724,14]
[354566108,1740576648820,-4892.82,0.00039724,14]
[354566109,1740576648829,-500.0,0.00039724,14]
[354566110,1740576648839,-500.0,0.00039724,14]
[354566111,1740576648849,-500.0,0.00039724,14]
[354566112,1740576648859,-500.0,0.00039724,14]
[354566113,1740576648868,-500.0,0.00039724,14]
[354566114,1740576648878,-500.0,0.00039724,14]
[354566115,1740576648888,-500.0,0.00039724,14]
[354566116,1740576648898,-192.73688666,0.00039724,14]
[354566117,1740576648908,-500.0,0.00039724,14]
[354566118,1740576648918,-500.0,0.00039724,14]
[354566119,1740576648928,-500.0,0.00039724,14]
[354566120,1740576648938,-4503.6,0.00039724,14]
[354566121,1740576648947,-192.54878007,0.00039724,14]
[354566122,1740576648957,-500.0,0.00039724,14]
[354566123,1740576648966,-500.0,0.00039724,14]
[354566124,1740576648976,-590.18,0.00039724,14]
[354566125,1740576648985,-500.0,0.00039724,14]
[354566126,1740576648996,-556.78,0.00039724,14]
[354566127,1740576649005,-3231.91,0.00039724,14]
[354566128,1740576649015,-500.0,0.00039724,14]
[354566129,1740576649024,-500.0,0.00039724,14]
[354566130,1740576649034,-500.0,0.00039724,14]
[354566131,1740576649043,-500.0,0.00039724,14]
[354566132,1740576649053,-500.0,0.00039724,14]
[354566133,1740576649062,-317.84024685,0.00039724,14]
[354566134,1740576649071,-500.0,0.00039724,14]
[354566135,1740576649081,-500.0,0.00039724,14]
[354566136,1740576649090,-317.79082275,0.00039724,14]
[354566137,1740576649100,-3553.83,0.00039724,14]
[354566138,1740576649110,-500.0,0.00039724,14]
[354566139,1740576649120,-316.88349939,0.00039724,14]
[354566140,1740576649130,-500.0,0.00039724,14]
[354566141,1740576649139,-513.58940355,0.00039724,14]
[354566142,1740576649148,-500.0,0.00039724,14]
[354566143,1740576649158,-878.01,0.00039725,14]
[354566144,1740576649167,-500.0,0.00039725,14]
[354566145,1740576649176,-611.03,0.00039725,14]
[354566146,1740576649186,-500.0,0.00039725,14]
[354566147,1740576649195,-1084.58,0.00039725,14]
[354566148,1740576649204,-500.0,0.00039725,14]
[354566149,1740576649214,-828.16,0.00039725,14]
[354566150,1740576649223,-500.0,0.00039725,14]
[354566151,1740576649232,-1679.36,0.00039725,14]
[354566152,1740576649241,-984.17,0.00039725,14]
[354566153,1740576649251,-927.99,0.00039725,14]
[354566154,1740576649260,-1527.43,0.00039725,14]
[354566155,1740576649270,-1258.08,0.00039725,14]
[354566156,1740576649279,-1010.12,0.00039725,14]
[354566157,1740576649288,-932.34,0.00039725,14]
[354566158,1740576649298,-500.0,0.00039725,14]
[354566159,1740576649307,-671.52,0.00039725,14]
[354566160,1740576649316,-902.44,0.00039725,14]
[354566161,1740576649326,-876.65,0.00039725,14]
[354566162,1740576649336,-673.95,0.00039725,14]
[354566163,1740576649347,-500.0,0.00039725,14]
[354566164,1740576649357,-1189.48,0.00039725,14]
[354566165,1740576649367,-604.03,0.00039725,14]
[354566166,1740576649377,-837.03,0.00039725,14]
[354566167,1740576649387,-769.06,0.00039725,14]
[354566168,1740576649396,-1166.51,0.00039725,14]
[354566169,1740576649406,-1540.85,0.00039725,14]
[354566170,1740576649416,-500.0,0.00039725,14]
[354566171,1740576649427,-2292.67,0.00039725,14]
[354566172,1740576649438,-809.73,0.00039725,14]
[354566173,1740576649448,-500.0,0.00039725,14]
[354566174,1740576649457,-2075.5,0.00039725,14]
[354566175,1740576649466,-763.52,0.00039725,14]
[354566176,1740576649475,-1006.7,0.00039725,14]
[354566177,1740576649485,-535.29,0.00039725,14]
[354566178,1740576649495,-615.2,0.00039725,14]
[354566179,1740576649504,-500.0,0.00039725,14]
[354566180,1740576649516,-976.04,0.00039725,14]
[354566181,1740576649525,-500.0,0.00039725,14]
[354566182,1740576649535,-500.0,0.00039725,14]
[354566183,1740576649544,-519.41,0.00039725,14]
[354566184,1740576649554,-989.31,0.00039725,14]
[354566185,1740576649564,-1021.46,0.00039725,14]
[354566186,1740576649575,-500.0,0.00039725,14]
[354566187,1740576649585,-1986.36,0.00039725,14]
[354566188,1740576649594,-835.15,0.00039725,14]
[354566189,1740576649603,-973.0,0.00039725,14]
[354566190,1740576649613,-1709.57,0.00039725,14]
[354566191,1740576649622,-1142.86,0.00039725,14]
[354566192,1740576649631,-500.0,0.00039725,14]
[354566193,1740576649640,-1422.77,0.00039725,14]
[354566194,1740576649650,-866.66,0.00039725,14]
[354566195,1740576649659,-500.0,0.00039725,14]
[354566196,1740576649668,-863.3,0.00039725,14]
[354566197,1740576649677,-573.77,0.00039725,14]
[354566198,1740576649686,-1645.33,0.00039725,14]
[354566199,1740576649695,-1158.93,0.00039725,14]
[354566200,1740576649704,-733.24,0.00039725,14]
[354566201,1740576649714,-870.39,0.00039725,14]
[354566202,1740576649723,-1191.37,0.00039725,14]
[354566203,1740576649733,-1269.71,0.00039725,14]
[354566204,1740576649742,-1452.5,0.00039725,14]
[354566205,1740576649751,-731.69,0.00039725,14]
[354566206,1740576649760,-3306.62,0.00039725,14]
[354566207,1740576649769,-521.0,0.00039725,14]
[354566208,1740576649778,-2815.63,0.00039725,14]
[354566209,1740576649787,-1946.72,0.00039725,14]
[354566210,1740576649796,-1877.6,0.00039725,14]
[354566211,1740576649806,-3442.25,0.00039725,14]
[354566212,1740576649815,-500.0,0.00039725,14]
[354566213,1740576649825,-1197.33,0.00039725,14]
[354566214,1740576649834,-1629.22,0.00039725,14]
[354566215,1740576649843,-1107.21,0.00039725,14]
[354566216,1740576649852,-500.0,0.00039725,14]
[354566217,1740576649861,-500.0,0.00039725,14]
[354566218,1740576649871,-862.05,0.00039725,14]
[354566219,1740576649880,-2764.45,0.00039725,14]
[354566220,1740576649889,-500.0,0.00039725,14]
[354566221,1740576649899,-3796.65,0.00039725,14]
[354566222,1740576649908,-2883.07,0.00039725,14]
[354566223,1740576649918,-7859.59,0.00039725,14]
[354566224,1740576649927,-808.31,0.00039725,14]
[354566225,1740576649936,-1497.36,0.00039725,14]
[354566226,1740576649946,-2397.74,0.00039725,14]
[354566227,1740576649956,-9888.03,0.00039725,14]
[354566228,1740576649965,-8595.15,0.00039725,14]
[354566229,1740576649975,-946.33,0.00039725,7]
[354566230,1740576649983,-1953.0,0.00039725,14]
[354566231,1740576649994,-3111.22,0.00039725,14]
[354566232,1740576650003,-2194.26,0.00039725,14]
[354566233,1740576650013,-5247.48,0.00039725,14]
[354566234,1740576650023,-1983.42,0.00039725,14]
[354566235,1740576650032,-205.6,0.00039725,14]
[354566236,1740576650042,-2292.55,0.00039725,14]
[354566237,1740576650051,-4077.83,0.00039725,14]
[354566238,1740576650061,-1684.49,0.00039725,14]
[354566239,1740576650070,-3576.04,0.00039725,14]
[354566240,1740576650079,-3502.33,0.00039725,14]
[354566241,1740576650089,-11552.8,0.00039725,14]
[354566242,1740576650098,-3671.11,0.00039725,14]
[354566243,1740576650107,-1050.56,0.00039725,14]
[354566244,1740576650179,-500.0,0.00039725,14]
[354566245,1740576650188,-1112.53,0.00039725,14]
[354566246,1740576650197,-501.17,0.00039725,14]
[354566247,1740576650206,-500.0,0.00039725,14]
[354566248,1740576650215,-3197.52,0.00039725,14]
[354566249,1740576650225,-3403.29,0.00039725,14]
[354566250,1740576650236,-1663.42,0.00039725,14]
[354566251,1740576650247,-680.19,0.00039725,14]
[354566252,1740576650256,-1637.32,0.00039725,14]
[354566253,1740576650266,-1382.08,0.00039725,14]
[354566254,1740576650275,-1050.35,0.00039725,14]
[354566255,1740576650286,-1543.56,0.00039725,14]
[354566256,1740576650296,-3991.15,0.00039725,14]
[354566257,1740576650307,-2996.28,0.00039725,14]
[354566258,1740576650316,-500.0,0.00039725,14]
[354566259,1740576650326,-500.0,0.00039725,14]
[354566260,1740576650335,-500.0,0.00039725,14]
[354566261,1740576650344,-3772.53,0.00039725,14]
[354566262,1740576650356,-1037.8,0.00039725,14]
[354566263,1740576650366,-2362.25,0.00039725,14]
[354566264,1740576650375,-1777.36,0.00039725,14]
[354566265,1740576650384,-1847.5,0.00039725,14]
[354566266,1740576650393,-500.0,0.00039725,14]
[354566267,1740576650402,-984.83,0.00039725,14]
[354566268,1740576650412,-1968.19,0.00039725,14]
[354566269,1740576650422,-2434.95,0.00039725,14]
[354566270,1740576650434,-522.12,0.00039725,14]
[354566271,1740576650444,-1458.5,0.00039725,14]
[354566272,1740576650453,-3895.41,0.00039725,14]
[354566273,1740576650463,-2853.85,0.00039725,14]
[354566274,1740576650472,-2473.08,0.00039725,14]
[354566275,1740576650481,-530.56,0.00039725,14]
[354566276,1740576650491,-1809.12,0.00039725,14]
[354566277,1740576650501,-4538.84,0.00039725,14]
[354566278,1740576650510,-1653.91,0.00039725,14]
[354566279,1740576650519,-2232.67,0.00039725,14]
[354566280,1740576650529,-578.42,0.00039725,14]
[354566281,1740576650538,-1150.41,0.00039725,14]
[354566282,1740576650548,-861.61,0.00039725,14]
[354566283,1740576650557,-1504.31,0.00039725,14]
[354566284,1740576650567,-500.0,0.00039725,14]
[354566285,1740576650578,-2256.66,0.00039725,14]
[354566286,1740576650587,-1469.18,0.00039725,14]
[354566287,1740576650596,-913.09,0.00039725,14]
[354566288,1740576650606,-852.63,0.00039725,14]
[354566289,1740576650615,-2523.26,0.00039725,14]
[354566290,1740576650625,-1743.61,0.00039725,14]
[354566291,1740576650634,-1322.75,0.00039725,14]
[354566292,1740576650643,-3298.14,0.00039725,14]
[354566293,1740576650653,-2076.75,0.00039725,14]
[354566294,1740576650662,-1522.56,0.00039725,14]
[354566295,1740576650672,-1632.46,0.00039725,14]
[354566296,1740576650681,-626.34,0.00039725,14]
[354566297,1740576650690,-5279.62,0.00039725,14]
[354566298,1740576650699,-560.85,0.00039725,14]
[354566299,1740576650709,-1321.63,0.00039726,7]
[354566300,1740576650718,-2347.72,0.00039726,14]
[354566301,1740576650728,-2405.17,0.00039726,14]
[354566302,1740576650737,-2844.03,0.00039726,2]
[354566303,1740576650746,-3091.06,0.00039726,14]
[354566304,1740576650756,-3332.29,0.00039726,14]
[354566305,1740576650765,-14365.51,0.00039726,14]
[354566306,1740576650774,-3011.58,0.00039726,14]
[354566307,1740576650783,-3287.97,0.00039726,14]
[354566308,1740576650794,-3528.48,0.00039726,14]
[354566309,1740576650803,-1923.88,0.00039726,14]
[354566310,1740576650812,-6973.92649352,0.00039747,2]
[354566311,1740576650824,-2000.0,0.00039763,4]
[354566312,1740576650833,-334.63,0.000398,2]
[354566313,1740576650842,-12896.576,0.000399,2]
[354566314,1740576650852,-288.33347585,0.000399,13]
[354566315,1740576650861,-2110.0,0.00039917,2]
[354566316,1740576650871,-150.0,0.00039939,2]
[354566317,1740576650881,-150.0,0.00039943,2]
[354566318,1740576650890,-150.0,0.00039985,2]
[354566319,1740576650900,-2026.05,0.00039989,14]
[354566320,1740576650910,-150.0,0.00039997,2]
[354566321,1740576650919,-500.0,0.00039997,14]
[354566322,1740576650928,-500.0,0.00039998,14]
[354566323,1740576650938,-500.0,0.00039998,14]
[354566324,1740576650947,-500.0,0.00039998,14]
[354566325,1740576650956,-500.0,0.00039998,14]
[354566326,1740576650966,-500.0,0.00039998,14]
[354566327,1740576650975,-693.02,0.00039998,14]
[354566328,1740576650985,-500.0,0.00039998,14]
[354566329,1740576650995,-655.78,0.00039998,14]
[354566330,1740576651004,-823.61,0.00039998,14]
[354566331,1740576651014,-500.0,0.00039998,14]
[354566332,1740576651024,-968.88,0.00039998,14]
[354566333,1740576651033,-530.34,0.00039998,14]
[354566334,1740576651043,-500.0,0.00039998,14]
[354566335,1740576651052,-500.0,0.00039998,14]
[354566336,1740576651062,-545.56,0.00039998,14]
[354566337,1740576651071,-500.0,0.00039998,14]
[354566338,1740576651082,-500.0,0.00039998,14]
[354566339,1740576651092,-500.0,0.00039998,14]
[354566340,1740576651101,-907.97,0.00039998,14]
[354566341,1740576651111,-500.0,0.00039998,14]
[354566342,1740576651123,-500.0,0.00039998,14]
[354566343,1740576651132,-500.0,0.00039998,14]
[354566344,1740576651142,-1115.54,0.00039998,14]
[354566345,1740576651151,-500.0,0.00039998,14]
[354566346,1740576651162,-500.0,0.00039998,14]
[354566347,1740576651171,-1481.61,0.00039998,14]
[354566348,1740576651180,-500.0,0.00039998,14]
[354566349,1740576651189,-500.0,0.00039998,14]
[354566350,1740576651198,-500.0,0.00039998,14]
[354566351,1740576651207,-599.44,0.00039998,14]
[354566352,1740576651217,-1063.94,0.00039998,14]
[354566353,1740576651226,-500.0,0.00039998,14]
[354566354,1740576651235,-683.53,0.00039998,14]
[354566355,1740576651244,-927.51,0.00039998,14]
[354566356,1740576651253,-500.0,0.00039998,14]
[354566357,1740576651263,-619.73,0.00039998,14]
[354566358,1740576651272,-698.53,0.00039998,14]
[354566359,1740576651281,-894.91,0.00039998,14]
[354566360,1740576651291,-500.0,0.00039998,14]
[354566361,1740576651300,-615.17,0.00039998,14]
[354566362,1740576651310,-1194.43,0.00039998,14]
[354566363,1740576651319,-500.0,0.00039998,14]
[354566364,1740576651329,-1097.78,0.00039998,14]
[354566365,1740576651338,-500.0,0.00039998,14]
[354566366,1740576651349,-501.86132821,0.00039998,14]
[354566367,1740576651359,-1480.69,0.00039998,14]
[354566368,1740576651369,-500.0,0.00039998,14]
[354566369,1740576651378,-666.19,0.00039998,14]
[354566370,1740576651388,-500.0,0.00039998,14]
[354566371,1740576651397,-653.18,0.00039998,14]
[354566372,1740576651406,-503.32300921,0.00039998,14]
[354566373,1740576651415,-500.0,0.00039998,14]
[354566374,1740576651425,-960.88,0.00039998,14]
[354566375,1740576651434,-500.0,0.00039998,14]
[354566376,1740576651443,-730.68,0.00039998,14]
[354566377,1740576651452,-500.0,0.00039998,14]
[354566378,1740576651461,-637.85,0.00039998,14]
[354566379,1740576651470,-699.76,0.00039998,14]